fUST/lending_fUST_20241115
["ID","MTS","AMOUNT","RATE_DAILY","PERIOD"]
[342245725,1731646238797,-508.44912883,0.00015996,2]
[342245726,1731646238806,-500.0,0.00015996,2]
[342245727,1731646238827,-500.0,0.00015996,2]
[342245728,1731646238837,-680.34,0.00015996,2]
[342245729,1731646238849,-500.0,0.00015996,2]
[342245730,1731646238864,-500.0,0.00015996,2]
[342245731,1731646238877,-500.0,0.00015996,2]
[342245732,1731646238887,-500.0,0.00015996,2]
[342245733,1731646238897,-500.0,0.00015996,2]
[342245734,1731646238906,-500.0,0.00015996,2]
[342245735,1731646238917,-500.0,0.00015996,2]
[342245736,1731646238927,-162.03304895,0.00015996,2]
[342245737,1731646238936,-500.0,0.00015996,2]
[342245738,1731646238947,-500.0,0.00015996,2]
[342245739,1731646238957,-320.89757075,0.00015996,2]
[342245740,1731646238967,-500.0,0.00015996,2]
[342245741,1731646238979,-500.0,0.00015996,2]
[342245742,1731646238992,-4619.43,0.00015996,2]
[342245743,1731646239001,-500.0,0.00015996,2]
[342245744,1731646239216,-186.1174888,0.00015996,2]
[342245745,1731646239226,-665.78,0.00015996,2]
[342245746,1731646239235,-572.5,0.00015996,2]
[342245747,1731646239243,-500.0,0.00015996,2]
[342245748,1731646239252,-5001.07,0.00015996,2]
[342245749,1731646239261,-500.0,0.00015996,2]
[342245750,1731646239270,-706.53,0.00015996,2]
[342245751,1731646239279,-2344.38,0.00015996,2]
[342245752,1731646239289,-500.0,0.00015996,2]
[342245753,1731646239298,-502.92437364,0.00015996,2]
[342245754,1731646239308,-1039.82,0.00015996,2]
[342245755,1731646239320,-500.0,0.00015996,2]
[342245756,1731646239330,-500.0,0.00015996,2]
[342245757,1731646239340,-841.49,0.00015996,2]
[342245758,1731646239349,-501.57016261,0.00015996,2]
[342245759,1731646239359,-152.22814303,0.00015996,2]
[342245760,1731646239368,-505.22214938,0.00015996,2]
[342245761,1731646239378,-500.0,0.00015996,2]
[342245762,1731646239388,-502.27421378,0.00015996,2]
[342245763,1731646239398,-740.2,0.00015996,2]
[342245764,1731646239407,-500.0,0.00015996,2]
[342245765,1731646239417,-500.0,0.00015996,2]
[342245766,1731646239426,-29407.7,0.00015996,2]
[342245767,1731646239436,-508.98657609,0.00015996,2]
[342245768,1731646239445,-1064.37,0.00015996,2]
[342245769,1731646239454,-506.42154747,0.00015996,2]
[342245770,1731646239464,-500.0,0.00015996,2]
[342245771,1731646239473,-500.0,0.00015996,2]
[342245772,1731646239482,-500.0,0.00015996,2]
[342245773,1731646239491,-500.0,0.00015997,2]
[342245774,1731646239501,-500.0,0.00015997,2]
[342245775,1731646239510,-500.0,0.00015997,2]
[342245776,1731646239520,-500.0,0.00015997,2]
[342245777,1731646239529,-500.0,0.00015997,2]
[342245778,1731646239538,-500.0,0.00015997,2]
[342245779,1731646239554,-27220.25,0.00015997,2]
[342245780,1731646239566,-500.0,0.00015997,2]
[342245781,1731646239575,-500.0,0.00015997,2]
[342245782,1731646239585,-2155.76,0.00015997,2]
[342245783,1731646239594,-505.24814415,0.00015997,2]
[342245784,1731646239604,-793.07,0.00015997,2]
[342245785,1731646239613,-500.0,0.00015997,2]
[342245786,1731646239623,-500.0,0.00015997,2]
[342245787,1731646239632,-506.82003454,0.00015997,2]
[342245788,1731646239642,-3162.31,0.00015997,2]
[342245789,1731646239651,-1051.64,0.00015997,2]
[342245790,1731646239661,-222.29009245,0.00015997,2]
[342245791,1731646239674,-1465.52990755,0.00015997,2]
[342245792,1731646239683,-500.0,0.00015997,2]
[342245793,1731646239693,-702.86,0.00015997,2]
[342245794,1731646239702,-500.0,0.00015997,2]
[342245795,1731646239711,-1034.12,0.00015997,2]
[342245796,1731646239721,-500.0,0.00015997,2]
[342245797,1731646239731,-500.0,0.00015997,2]
[342245798,1731646239740,-8714.18,0.00015997,2]
[342245799,1731646239750,-500.0,0.00015997,2]
[342245800,1731646239759,-500.0,0.00015997,2]
[342245801,1731646239769,-500.0,0.00015997,2]
[342245802,1731646239779,-500.0,0.00015997,2]
[342245803,1731646239789,-663.44,0.00015997,2]
[342245804,1731646239798,-637.36,0.00015997,2]
[342245805,1731646239807,-500.0,0.00015997,2]
[342245806,1731646239818,-4646.93,0.00015997,2]
[342245807,1731646239827,-710.8,0.00015997,2]
[342245808,1731646239836,-500.0,0.00015997,2]
[342245809,1731646239844,-779.0,0.00015997,2]
[342245810,1731646239855,-500.0,0.00015998,2]
[342245811,1731646239866,-673.77,0.00015998,2]
[342245812,1731646239877,-500.0,0.00015998,2]
[342245813,1731646239887,-698.86,0.00015998,2]
[342245814,1731646239898,-652.42,0.00015998,2]
[342245815,1731646239910,-295.21912529,0.00015998,2]
[342245816,1731646239920,-500.0,0.00015998,2]
[342245817,1731646239930,-500.0,0.00015998,2]
[342245818,1731646239939,-500.0,0.00015998,2]
[342245819,1731646239951,-500.0,0.00015998,2]
[342245820,1731646239962,-673.03,0.00015998,2]
[342245821,1731646239971,-500.0,0.00015998,2]
[342245822,1731646239981,-500.0,0.00015998,2]
[342245823,1731646239990,-293.61895179,0.00015998,2]
[342245873,1731646246634,-248.78219096,0.00015836,2]
[342245875,1731646246644,-248.78219096,0.00015996,2]
[342245876,1731646246655,-500.0,0.00015996,2]
[342245877,1731646246671,-509.29055005,0.00015996,2]
[342245878,1731646246680,-241.26190197,0.00015997,2]
[342245879,1731646246690,-206.38104821,0.00015998,2]
[342245880,1731646246699,-500.0,0.00015998,2]
[342245881,1731646246707,-500.90711527,0.00015998,2]
[342245882,1731646246717,-500.0,0.00015998,2]
[342245883,1731646246726,-610.0644724,0.00015998,2]
[342245884,1731646246735,-803.60604162,0.00015998,2]
[342245885,1731646249925,249.44,0.00010959,2]
[342245886,1731646260669,207.86,0.00010959,2]
[342245887,1731646271197,173.22,0.00010959,2]
[342245888,1731646292654,866.12,0.00010959,2]
[342245892,1731647366142,-294.0,0.00013023,2]
[342245895,1731647431738,-106.0,0.00013023,2]
[342245896,1731647431748,-400.0,0.00013973,2]
[342245897,1731647431759,-210.357121,0.00014665,2]
[342245898,1731647431768,-331.37825368,0.00015651,2]
[342245899,1731647431799,-6294.47368027,0.00015651,2]
[342245900,1731647431808,-159.19058121,0.00015665,3]
[342245901,1731647431858,-0.80941879,0.00015665,3]
[342245902,1731647431867,-300.0,0.00015675,2]
[342245903,1731647431877,-194.48708121,0.00015676,2]
[342245904,1731647431888,-305.51291879,0.00015676,2]
[342245905,1731647431897,-380.46708121,0.00015676,2]
[342245971,1731647437780,-413.07882208,0.00015676,2]
[342245972,1731647437893,-2406.72330647,0.00015676,2]
[342245973,1731647437905,-499.77566816,0.00015676,2]
[342245984,1731647439667,-411.2181008,0.00015676,2]
[342245985,1731647439729,-205.66321572,0.00015676,2]
[342245986,1731647439739,-181.13059728,0.00015676,2]
[342245987,1731647439751,-134.556424,0.00015676,2]
[342245988,1731647439760,-391.337996,0.00015676,2]
[342245990,1731647439774,-578.17,0.00015676,2]
[342245992,1731647439785,-792.083198,0.00015676,2]
[342245993,1731647439797,-569.091145,0.00015676,2]
[342245994,1731647439809,-573.93323325,0.00015676,2]
[342246009,1731647442950,-7452.94475653,0.00015519,2]
[342246010,1731647442962,-366.88,0.00015519,2]
[342246011,1731647442974,-5187.55819231,0.00015519,2]
[342246012,1731647443058,-2908.93255092,0.00015519,2]
[342246013,1731647443071,-641.45326786,0.00015519,2]
[342246027,1731647445786,-11180.92504071,0.00015519,2]
[342246028,1731647445796,-1888.07442775,0.00015676,2]
[342246029,1731647445805,-677.09,0.00015676,2]
[342246030,1731647445815,-500.0,0.00015676,2]
[342246031,1731647445825,-2246.7,0.00015676,2]
[342246032,1731647445835,-709.35,0.00015676,2]
[342246033,1731647445844,-806.42,0.00015676,2]
[342246034,1731647445854,-6639.20136246,0.00015676,2]
[342246035,1731647445866,-269.7219765,0.00015676,2]
[342246036,1731647445877,-376.19889998,0.00015676,2]
[342246037,1731647555383,1500.0,0.00027,60]
[342246038,1731647637856,5000.0,0.000151,14]
[342246039,1731647653634,5000.0,0.000151,14]
[342246065,1731648634124,-400.0,0.00013695,2]
[342246066,1731648634135,-400.0,0.00013973,2]
[342246067,1731648634143,-370.5444,0.00015,7]
[342246068,1731648634205,-1609.88807862,0.00015,7]
[342246069,1731648634218,-272.71382738,0.00015561,2]
[342246103,1731648638354,-1624.17441154,0.00015561,2]
[342246104,1731648638365,-1833.87121637,0.00015561,2]
[342246111,1731648639980,-6696.94675162,0.00015405,2]
[342246112,1731648639990,-3238.90112371,0.00015561,2]
[342246113,1731648639999,-300.0,0.00015572,2]
[342246114,1731648640010,-300.0,0.00015573,2]
[342246115,1731648640019,-324.5448285,0.00015576,2]
[342246116,1731648640029,-4242.5,0.00015576,2]
[342246117,1731648640038,-4592.99,0.00015576,2]
[342246118,1731648640047,-2153.09,0.00015576,2]
[342246119,1731648640057,-648.88,0.00015576,2]
[342246120,1731648640070,-772.82,0.00015576,2]
[342246121,1731648640079,-500.0,0.00015576,2]
[342246122,1731648640088,-500.0,0.00015576,2]
[342246123,1731648640098,-1020.02,0.00015576,2]
[342246124,1731648640107,-679.8,0.00015576,2]
[342246125,1731648640116,-500.0,0.00015576,2]
[342246126,1731648640125,-500.0,0.00015576,2]
[342246127,1731648640135,-500.0,0.00015576,2]
[342246128,1731648640144,-26086.08,0.00015576,2]
[342246129,1731648640154,-27878.83,0.00015577,2]
[342246130,1731648640163,-500.0,0.00015577,2]
[342246131,1731648640173,-500.0,0.00015577,2]
[342246132,1731648640182,-2065.94,0.00015577,2]
[342246133,1731648640191,-500.0,0.00015577,2]
[342246134,1731648640201,-760.03,0.00015577,2]
[342246135,1731648640210,-3030.54,0.00015577,2]
[342246136,1731648640223,-500.0,0.00015577,2]
[342246137,1731648640233,-1617.5,0.00015577,2]
[342246138,1731648640242,-500.0,0.00015577,2]
[342246139,1731648640251,-673.57,0.00015577,2]
[342246140,1731648640260,-1007.82,0.00015577,2]
[342246141,1731648640270,-500.0,0.00015577,2]
[342246142,1731648640280,-991.03,0.00015577,2]
[342246143,1731648640291,-285.88944797,0.00015577,2]
[342246149,1731648642953,-214.11055203,0.00015577,2]
[342246150,1731648642965,-500.0,0.00015577,2]
[342246151,1731648642975,-556.3247287,0.00015577,2]
[342246152,1731648642985,-536.33277197,0.00015577,2]
[342246153,1731648643029,-2550.69961305,0.00015577,2]
[342246154,1731648643055,-216.357121,0.00015577,2]
[342246254,1731648678089,177.15,0.00010959,2]
[342246255,1731648688631,885.75,0.00010959,2]
[342246259,1731649158715,400.0,0.0001107,2]
[342246260,1731649747089,-166.71132,0.00013426,2]
[342246261,1731649747110,-1494.90911402,0.00013574,2]
[342246262,1731649768602,301.48,0.00027,60]
[342246291,1731649832160,-300.0,0.00013437,2]
[342246294,1731649832170,-300.0,0.00013437,2]
[342246296,1731649832179,-315.44898175,0.00013438,2]
[342246566,1731649838293,-544.19082374,0.00013438,2]
[342246569,1731649840189,-877.86,0.00013438,2]
[342246600,1731649843194,-290.00894769,0.00013438,2]
[342246674,1731649846207,-6355.68592467,0.00013438,2]
[342246676,1731650123226,400.0,0.0001107,3]
[342246677,1731650130603,413.0,0.00027,60]
[342246678,1731650313698,5000.0,0.000151,14]
[342246679,1731650329119,5000.0,0.000151,14]
[342246680,1731650345477,5000.0,0.000151,14]
[342246687,1731650759129,354.28,0.00010959,2]
[342246706,1731650959137,-600.0,0.00012509,2]
[342246707,1731650959158,-300.0,0.00012635,2]
[342246708,1731650959180,-300.0,0.00012635,2]
[342246709,1731650959202,-5818.38020293,0.00012636,2]
[342246710,1731651032603,-6272.94299491,0.00012509,2]
[342246711,1731651032613,-300.0,0.00012635,2]
[342246712,1731651032622,-300.0,0.00012635,2]
[342246713,1731651032631,-19081.61979707,0.00012636,2]
[342246714,1731651032641,-3000.0,0.00012667,2]
[342246715,1731651032651,-194.79445238,0.00013203,2]
[342246716,1731651032824,-5369.36024836,0.00013368,2]
[342246717,1731651032834,-4555.00939199,0.00013598,2]
[342246718,1731651032844,-500.0,0.00013673,2]
[342246719,1731651032853,-165.772357,0.00013698,2]
[342246720,1731651032863,-165.772357,0.00013698,2]
[342246722,1731651032873,-630.24232791,0.00013698,2]
[342246723,1731651032883,-500.0,0.00013698,2]
[342246725,1731651032892,-500.0,0.00013698,2]
[342246728,1731651032902,-329.42678338,0.00013698,2]
[342246729,1731651032912,-500.0,0.00013698,2]
[342246730,1731651032921,-500.0,0.00013698,2]
[342246732,1731651032931,-500.0,0.00013698,2]
[342246734,1731651032940,-500.0,0.00013698,2]
[342246735,1731651032949,-500.0,0.00013698,2]
[342246736,1731651032959,-500.0,0.00013698,2]
[342246737,1731651032969,-500.0,0.00013698,2]
[342246738,1731651032979,-500.0,0.00013698,2]
[342246739,1731651032988,-500.0,0.00013698,2]
[342246740,1731651032997,-500.0,0.00013698,2]
[342246741,1731651033006,-500.0,0.00013698,2]
[342246742,1731651033016,-500.0,0.00013698,2]
[342246743,1731651033025,-381.70714071,0.00013698,2]
[342246744,1731651033035,-500.0,0.00013698,2]
[342246745,1731651033044,-500.0,0.00013698,2]
[342246746,1731651033054,-500.0,0.00013698,2]
[342246747,1731651033064,-500.0,0.00013698,2]
[342246748,1731651033075,-500.0,0.00013698,2]
[342246749,1731651033085,-500.0,0.00013698,2]
[342246750,1731651033094,-386.47001692,0.00013698,2]
[342246751,1731651033104,-243.9702251,0.00013698,2]
[342246752,1731651033113,-500.0,0.00013698,2]
[342246753,1731651033123,-500.0,0.00013698,2]
[342246754,1731651033133,-500.0,0.00013698,2]
[342246755,1731651033143,-500.0,0.00013698,2]
[342246756,1731651033152,-500.0,0.00013698,2]
[342246757,1731651033161,-500.0,0.00013698,2]
[342246758,1731651033171,-500.0,0.00013698,2]
[342246759,1731651033181,-500.0,0.00013698,2]
[342246760,1731651033190,-500.0,0.00013698,2]
[342246761,1731651033200,-500.0,0.00013698,2]
[342246762,1731651033209,-532.08975708,0.00013698,2]
[342246763,1731651033220,-500.0,0.00013698,2]
[342246764,1731651033230,-222.17455709,0.00013698,2]
[342246765,1731651033240,-500.0,0.00013698,2]
[342246766,1731651033250,-500.0,0.00013698,2]
[342246767,1731651033259,-500.0,0.00013698,2]
[342246768,1731651033269,-500.0,0.00013698,2]
[342246769,1731651033278,-500.0,0.00013698,2]
[342246770,1731651033287,-500.0,0.00013698,2]
[342246771,1731651033297,-500.0,0.00013698,2]
[342246772,1731651033306,-500.0,0.00013698,2]
[342246773,1731651033316,-500.0,0.00013698,2]
[342246774,1731651033328,-500.0,0.00013698,2]
[342246775,1731651033338,-500.0,0.00013698,2]
[342246776,1731651033347,-500.0,0.00013698,2]
[342246777,1731651033357,-500.0,0.00013698,2]
[342246778,1731651033366,-500.0,0.00013698,2]
[342246779,1731651033380,-500.0,0.00013698,2]
[342246780,1731651033390,-500.0,0.00013698,2]
[342246781,1731651033404,-500.0,0.00013698,2]
[342246782,1731651033415,-500.0,0.00013698,2]
[342246783,1731651033425,-367.69171743,0.00013698,2]
[342246784,1731651033434,-500.0,0.00013698,2]
[342246785,1731651033444,-206.44130334,0.00013698,2]
[342246786,1731651033455,-500.0,0.00013698,2]
[342246787,1731651033465,-500.0,0.00013698,2]
[342246788,1731651033474,-500.0,0.00013698,2]
[342246789,1731651033483,-500.0,0.00013698,2]
[342246790,1731651033493,-458.92690314,0.00013698,2]
[342246791,1731651033503,-500.0,0.00013698,2]
[342246792,1731651033512,-151.0,0.00013698,2]
[342246793,1731651033524,-152.296987,0.00013698,2]
[342246794,1731651033535,-500.0,0.00013698,2]
[342246795,1731651033546,-500.0,0.00013698,2]
[342246796,1731651033556,-500.0,0.00013698,2]
[342246797,1731651033566,-303.75443433,0.00013698,2]
[342246798,1731651033580,-298.79753769,0.00013698,2]
[342246799,1731651033593,-280.38546836,0.00013698,2]
[342246800,1731651033603,-389.24112425,0.00013698,2]
[342246801,1731651033613,-500.0,0.00013698,2]
[342246802,1731651033623,-419.31825232,0.00013698,2]
[342246803,1731651033633,-500.0,0.00013698,2]
[342246804,1731651033642,-151.0,0.00013698,2]
[342246805,1731651033653,-151.0,0.00013698,2]
[342246806,1731651033663,-268.706085,0.00013698,2]
[342246807,1731651033672,-628.485732,0.00013698,2]
[342246808,1731651033682,-628.485732,0.00013698,2]
[342246809,1731651033692,-628.485732,0.00013698,2]
[342246810,1731651033701,-628.485732,0.00013698,2]
[342246811,1731651033711,-500.0,0.00013698,2]
[342246812,1731651033720,-152.63797346,0.00013698,2]
[342246813,1731651033730,-183.80607118,0.00013698,2]
[342246814,1731651033739,-500.0,0.00013698,2]
[342246815,1731651033749,-227.12562855,0.00013698,2]
[342246816,1731651033759,-500.0,0.00013698,2]
[342246817,1731651033769,-500.0,0.00013698,2]
[342246818,1731651033779,-500.0,0.00013698,2]
[342246819,1731651033788,-500.0,0.00013698,2]
[342246820,1731651033797,-500.0,0.00013698,2]
[342246821,1731651033807,-500.0,0.00013698,2]
[342246822,1731651033816,-500.0,0.00013698,2]
[342246823,1731651033829,-500.0,0.00013698,2]
[342246824,1731651033838,-500.0,0.00013698,2]
[342246825,1731651033847,-639.31098736,0.00013698,2]
[342246826,1731651033856,-500.0,0.00013698,2]
[342246827,1731651033866,-500.0,0.00013698,2]
[342246828,1731651033875,-500.0,0.00013698,2]
[342246829,1731651033884,-500.0,0.00013698,2]
[342246830,1731651033893,-500.0,0.00013698,2]
[342246831,1731651033902,-165.73240545,0.00013698,2]
[342246832,1731651033911,-500.0,0.00013698,2]
[342246833,1731651033921,-500.0,0.00013698,2]
[342246834,1731651033930,-500.0,0.00013698,2]
[342246835,1731651033939,-500.0,0.00013698,2]
[342246836,1731651033948,-500.0,0.00013698,2]
[342246837,1731651033957,-151.0,0.00013698,2]
[342246838,1731651033967,-151.0,0.00013698,2]
[342246839,1731651033976,-151.0,0.00013698,2]
[342246840,1731651033985,-151.0,0.00013698,2]
[342246841,1731651033995,-151.0,0.00013698,2]
[342246842,1731651034004,-151.0,0.00013698,2]
[342246843,1731651034014,-151.0,0.00013698,2]
[342246844,1731651034024,-151.0,0.00013698,2]
[342246845,1731651034034,-932.32,0.00013698,2]
[342246846,1731651034044,-151.0,0.00013698,2]
[342246847,1731651034053,-151.0,0.00013698,2]
[342246848,1731651034062,-151.0,0.00013698,2]
[342246849,1731651034076,-151.0,0.00013698,2]
[342246850,1731651034087,-151.0,0.00013698,2]
[342246851,1731651034097,-151.0,0.00013698,2]
[342246852,1731651034107,-151.0,0.00013698,2]
[342246853,1731651034116,-151.0,0.00013698,2]
[342246854,1731651034125,-151.0,0.00013698,2]
[342246855,1731651034135,-153.326718,0.00013698,2]
[342246856,1731651034144,-500.0,0.00013698,2]
[342246857,1731651034153,-500.0,0.00013698,2]
[342246858,1731651034163,-504.10610863,0.00013698,2]
[342246859,1731651034173,-500.0,0.00013698,2]
[342246860,1731651034183,-151.0,0.00013698,2]
[342246861,1731651034192,-151.0,0.00013698,2]
[342246862,1731651034203,-151.0,0.00013698,2]
[342246863,1731651034212,-151.0,0.00013698,2]
[342246864,1731651034223,-282.17849132,0.00013698,2]
[342246865,1731651034244,-151.0,0.00013698,2]
[342246866,1731651034266,-151.0,0.00013698,2]
[342246867,1731651034286,-503.47,0.00013698,2]
[342246868,1731651034306,-151.0,0.00013698,2]
[342246869,1731651034317,-500.0,0.00013698,2]
[342246870,1731651034330,-151.0,0.00013698,2]
[342246871,1731651034340,-501.17613504,0.00013698,2]
[342246872,1731651034350,-502.88953394,0.00013698,2]
[342246873,1731651034360,-500.0,0.00013698,2]
[342246874,1731651034370,-639.86,0.00013698,2]
[342246875,1731651034383,-500.0,0.00013698,2]
[342246876,1731651034392,-500.0,0.00013698,2]
[342246877,1731651034402,-230.219759,0.00013698,2]
[342246878,1731651034412,-230.219759,0.00013698,2]
[342246879,1731651034422,-230.219759,0.00013698,2]
[342246880,1731651034432,-230.219759,0.00013698,2]
[342246881,1731651034441,-500.0,0.00013698,2]
[342246882,1731651034450,-230.219759,0.00013698,2]
[342246883,1731651034461,-694.6,0.00013698,2]
[342246884,1731651034471,-230.219759,0.00013698,2]
[342246885,1731651034480,-230.219759,0.00013698,2]
[342246886,1731651034491,-318.557539,0.00013698,2]
[342246887,1731651034500,-230.219759,0.00013698,2]
[342246888,1731651034509,-318.557539,0.00013698,2]
[342246889,1731651034519,-230.219759,0.00013698,2]
[342246890,1731651034528,-318.557539,0.00013698,2]
[342246891,1731651034538,-230.219759,0.00013698,2]
[342246892,1731651034548,-318.557539,0.00013698,2]
[342246893,1731651034557,-318.557539,0.00013698,2]
[342246894,1731651034567,-230.219759,0.00013698,2]
[342246895,1731651034582,-230.219759,0.00013698,2]
[342246896,1731651034592,-318.557539,0.00013698,2]
[342246897,1731651034601,-318.557539,0.00013698,2]
[342246898,1731651034611,-230.219759,0.00013698,2]
[342246899,1731651034621,-230.219759,0.00013698,2]
[342246900,1731651034630,-318.557539,0.00013698,2]
[342246901,1731651034640,-230.219759,0.00013698,2]
[342246902,1731651034649,-318.557539,0.00013698,2]
[342246903,1731651034659,-230.219759,0.00013698,2]
[342246904,1731651034668,-318.557539,0.00013698,2]
[342246905,1731651034678,-625.24,0.00013698,2]
[342246906,1731651034687,-230.219759,0.00013698,2]
[342246907,1731651034696,-318.557539,0.00013698,2]
[342246908,1731651034706,-230.219759,0.00013698,2]
[342246909,1731651034715,-318.557539,0.00013698,2]
[342246910,1731651034725,-318.557539,0.00013698,2]
[342246911,1731651034734,-230.219759,0.00013698,2]
[342246912,1731651034743,-318.557539,0.00013698,2]
[342246913,1731651034753,-230.219763,0.00013698,2]
[342246914,1731651034762,-318.557539,0.00013698,2]
[342246915,1731651034771,-318.557539,0.00013698,2]
[342246916,1731651034781,-318.557539,0.00013698,2]
[342246917,1731651034797,-318.557539,0.00013698,2]
[342246918,1731651034806,-318.557539,0.00013698,2]
[342246919,1731651034815,-318.557535,0.00013698,2]
[342246920,1731651034827,-500.0,0.00013698,2]
[342246921,1731651034836,-151.0,0.00013698,2]
[342246922,1731651034846,-500.0,0.00013698,2]
[342246923,1731651034855,-500.0,0.00013698,2]
[342246924,1731651034864,-151.0,0.00013698,2]
[342246925,1731651034874,-511.97422819,0.00013698,2]
[342246926,1731651034883,-151.0,0.00013698,2]
[342246927,1731651034892,-151.0,0.00013698,2]
[342246928,1731651034902,-151.0,0.00013698,2]
[342246929,1731651034911,-151.0,0.00013698,2]
[342246930,1731651034920,-500.0,0.00013698,2]
[342246931,1731651034929,-680.61,0.00013698,2]
[342246932,1731651034939,-176.298069,0.00013698,2]
[342246933,1731651034948,-665.93,0.00013698,2]
[342246934,1731651034958,-500.0,0.00013698,2]
[342246935,1731651034967,-500.0,0.00013698,2]
[342246936,1731651034977,-651.99,0.00013698,2]
[342246937,1731651034986,-534.13920831,0.00013698,2]
[342246938,1731651034995,-500.0,0.00013698,2]
[342246939,1731651035004,-151.0,0.00013698,2]
[342246940,1731651035013,-500.0,0.00013698,2]
[342246941,1731651035022,-151.0,0.00013698,2]
[342246942,1731651035031,-151.0,0.00013698,2]
[342246943,1731651035041,-151.0,0.00013698,2]
[342246944,1731651035050,-151.0,0.00013698,2]
[342246945,1731651035059,-151.0,0.00013698,2]
[342246946,1731651035069,-151.0,0.00013698,2]
[342246947,1731651035079,-151.0,0.00013698,2]
[342246948,1731651035087,-151.0,0.00013698,2]
[342246949,1731651035097,-151.0,0.00013698,2]
[342246950,1731651035106,-259.857522,0.00013698,2]
[342246951,1731651035115,-500.0,0.00013698,2]
[342246952,1731651035124,-500.0,0.00013698,2]
[342246953,1731651035133,-923.66,0.00013698,2]
[342246954,1731651035142,-500.0,0.00013698,2]
[342246955,1731651035151,-500.0,0.00013698,2]
[342246956,1731651035160,-500.0,0.00013698,2]
[342246957,1731651035169,-500.0,0.00013698,2]
[342246958,1731651035178,-500.0,0.00013698,2]
[342246959,1731651035187,-500.0,0.00013698,2]
[342246960,1731651035196,-541.55,0.00013698,2]
[342246961,1731651035206,-633.67327,0.00013698,2]
[342246962,1731651035216,-633.67327,0.00013698,2]
[342246963,1731651035226,-633.67327,0.00013698,2]
[342246964,1731651035236,-633.67327,0.00013698,2]
[342246965,1731651035244,-633.67327,0.00013698,2]
[342246966,1731651035254,-633.67327,0.00013698,2]
[342246967,1731651035264,-633.67327,0.00013698,2]
[342246968,1731651035275,-633.67327,0.00013698,2]
[342246969,1731651035284,-633.67327,0.00013698,2]
[342246970,1731651035293,-633.67327,0.00013698,2]
[342246971,1731651035302,-633.67327,0.00013698,2]
[342246972,1731651035311,-633.67327,0.00013698,2]
[342246973,1731651035322,-633.67327,0.00013698,2]
[342246974,1731651035330,-633.67327,0.00013698,2]
[342246975,1731651035339,-633.67327,0.00013698,2]
[342246976,1731651035349,-633.67327,0.00013698,2]
[342246977,1731651035358,-633.67327,0.00013698,2]
[342246978,1731651035367,-633.67327,0.00013698,2]
[342246979,1731651035380,-633.67327,0.00013698,2]
[342246980,1731651035389,-633.673267,0.00013698,2]
[342246981,1731651035398,-500.0,0.00013698,2]
[342246982,1731651035407,-500.0,0.00013698,2]
[342246983,1731651035417,-500.0,0.00013698,2]
[342246984,1731651035427,-306.65703562,0.00013698,2]
[342246985,1731651035435,-500.0,0.00013698,2]
[342246986,1731651035446,-644.99,0.00013698,2]
[342246987,1731651035455,-500.0,0.00013698,2]
[342246988,1731651035464,-500.0,0.00013698,2]
[342246989,1731651035473,-500.0,0.00013698,2]
[342246990,1731651035482,-501.62239434,0.00013698,2]